bitfinex/quotes_BTCUSD_20260308
["timestamp","ask_amount","ask_price","bid_price","bid_amount"]
[1772991943157,0.0745879,67035.0,67028.0,0.0002]
[1772991943565,0.0745879,67036.0,67028.0,0.0002]
[1772991945201,0.07458678,67037.0,67028.0,0.0002]
[1772991945382,0.07933719,67037.0,67028.0,0.0002]
[1772991945588,0.07458678,67037.0,67028.0,0.0002]
[1772991945768,0.07480157,67041.0,67031.0,0.10538836]
[1772991945957,0.07480157,67041.0,67033.0,0.10538836]
[1772991947290,0.00034091,67044.0,67034.0,0.07458901]
[1772991947528,0.00034091,67044.0,67035.0,0.10992144]
[1772991947840,0.00034091,67044.0,67035.0,0.10538836]
[1772991948014,0.00034091,67044.0,67037.0,0.10538836]
[1772991948214,0.00034091,67044.0,67038.0,0.00148]
[1772991948413,0.00034091,67044.0,67038.0,0.10686836]
[1772991948570,0.07479364,67048.0,67038.0,0.10686836]
[1772991948775,0.07479364,67048.0,67038.0,0.11140144]
[1772991949173,0.01838259,67050.0,67041.0,0.00453308]
[1772991949380,0.01838259,67050.0,67043.0,0.074579]
[1772991949593,0.01838259,67050.0,67044.0,0.00148]
[1772991949983,0.00022001,67051.0,67044.0,0.00148]
[1772991950607,0.00022001,67051.0,67044.0,0.001663]
[1772991950809,0.07479013,67051.0,67044.0,0.001663]
[1772991951895,0.07479013,67051.0,67044.0,0.07624063]
[1772991957986,0.07479013,67051.0,67044.0,0.07644063]
[1772991960405,0.07479013,67051.0,67044.0,0.001863]
[1772991960612,0.07479013,67051.0,67045.0,0.00148]
[1772991961038,0.07479013,67051.0,67045.0,1e-08]
[1772991961233,0.07479013,67051.0,67043.0,1e-08]
[1772991961470,0.07479013,67051.0,67038.0,0.000131]
[1772991961471,0.10499493,67050.0,67038.0,0.000131]
[1772991961832,0.10507784,67050.0,67038.0,0.000131]
[1772991962052,0.10507784,67050.0,67038.0,0.001611]
[1772991962501,0.07457232,67049.0,67038.0,0.07619517]
[1772991962637,0.07457232,67049.0,67039.0,0.0057083]
[1772991968650,0.07457232,67049.0,67040.0,0.07458233]
[1772991975866,0.07479233,67049.0,67040.0,0.07458233]
[1772991978117,0.05480561,67049.0,67040.0,0.07458233]
[1772991978330,0.00022001,67051.0,67044.0,0.0057083]
[1772991978573,0.07479066,67051.0,67045.0,0.0057083]
[1772991979558,0.07478616,67055.0,67047.0,0.0057083]
[1772991980477,0.07478616,67055.0,67049.0,0.0057083]
[1772991980682,0.07478616,67055.0,67051.0,0.0057083]
[1772991981518,0.07478616,67055.0,67050.0,0.00148]
[1772991981729,0.00022001,67062.0,67050.0,0.00148]
[1772991981730,0.07454897,67070.0,67053.0,0.0057083]
[1772991981929,0.07460816,67070.0,67053.0,0.0057083]
[1772991982299,0.07460816,67070.0,67050.0,0.00148]
[1772991982300,0.10531588,67069.0,67050.0,0.00148]
[1772991982473,0.10531588,67067.0,67051.0,0.0745701]
[1772991982861,0.10531588,67067.0,67051.0,0.0802784]
[1772991983265,0.10531588,67067.0,67051.0,0.0745701]
[1772991983470,0.10531588,67067.0,67052.0,0.0057083]
[1772991984794,0.00022001,67062.0,67053.0,0.07456787]
[1772991992642,0.00022001,67062.0,67053.0,0.08027617]
[1772991993540,0.00022001,67062.0,67052.0,0.07456787]
[1772991993944,0.00022001,67062.0,67053.0,0.0057083]
[1772991997744,0.00022001,67062.0,67054.0,0.07456676]
[1772991998863,0.00022001,67062.0,67054.0,0.09597389]
[1772991999516,0.00022001,67062.0,67054.0,0.07456676]
[1772991999718,0.07455329,67067.0,67057.0,0.02140713]
[1772991999901,0.07455329,67067.0,67057.0,0.02288713]
[1772992002321,0.07455329,67067.0,67058.0,0.07456231]
[1772992002664,0.07455329,67067.0,67059.0,0.02140713]
[1772992004446,0.07455329,67067.0,67059.0,0.09596751]
[1772992005931,0.07455329,67067.0,67059.0,0.07456038]
[1772992006374,0.07455329,67067.0,67059.0,0.09596751]
[1772992009178,0.07455329,67067.0,67058.0,0.07456231]
[1772992009751,0.07455329,67067.0,67057.0,0.00148]
[1772992009952,0.07455329,67067.0,67056.0,0.07456425]
[1772992010190,0.07455329,67067.0,67058.0,0.00148]
[1772992010820,0.18072425,67067.0,67058.0,0.00148]
[1772992011027,0.00066202,67065.0,67048.0,0.07457343]
[1772992011211,0.10595095,67062.0,67053.0,0.00148]
[1772992012063,0.10595095,67062.0,67048.0,0.07457343]
[1772992012267,0.10612385,67062.0,67049.0,0.00148]
[1772992012629,0.0001729,67062.0,67050.0,0.00148]
[1772992012828,0.0001729,67062.0,67052.0,0.07456899]
[1772992015671,0.0001729,67062.0,67052.0,0.07923797]
[1772992018056,0.0001729,67062.0,67052.0,0.07943797]
[1772992018256,0.00039291,67062.0,67052.0,0.07943797]
[1772992020571,0.00039291,67062.0,67041.0,0.07458072]
[1772992020572,0.00470612,67059.0,67041.0,0.07458072]
[1772992020801,0.00470612,67055.0,67042.0,0.00148]
[1772992021004,0.10595095,67052.0,67043.0,0.00148]
[1772992021160,0.11065707,67050.0,67042.0,0.00148]
[1772992021761,0.11065707,67050.0,67040.0,0.07501207]
[1772992021958,0.11065707,67050.0,67041.0,0.00148]
[1772992022609,0.11065707,67048.0,67041.0,0.00148]
[1772992022824,0.07457232,67049.0,67041.0,0.00148]
[1772992023962,0.07456262,67058.0,67045.0,0.09918385]
[1772992024110,0.07456262,67058.0,67047.0,0.00458772]
[1772992024111,0.07473657,67057.0,67047.0,0.00458772]
[1772992024307,0.07473657,67057.0,67052.0,9.5e-05]
[1772992024548,0.0001729,67057.0,67052.0,0.00468272]
[1772992026643,0.00039291,67057.0,67052.0,0.00468272]
[1772992027184,0.07456454,67056.0,67052.0,0.00468272]
[1772992027387,0.07455898,67061.0,67053.0,0.00453286]
[1772992028072,0.00022001,67062.0,67054.0,0.00148]
[1772992028271,0.07477824,67062.0,67055.0,0.00453286]
[1772992028477,0.0747781,67062.0,67055.0,0.00453286]
[1772992029054,0.0747781,67062.0,67056.0,0.07456454]
[1772992029496,0.0747781,67062.0,67055.0,0.00453286]
[1772992030766,0.0747781,67062.0,67055.0,0.00601286]
[1772992031601,0.0747781,67062.0,67055.0,0.08057847]
[1772992032791,0.0747781,67062.0,67052.0,0.07466378]
[1772992033104,0.17902531,67062.0,67053.0,0.00148]
[1772992033693,0.17902531,67062.0,67053.0,0.07604749]
[1772992035894,0.17902531,67062.0,67052.0,9.5e-05]
[1772992036092,0.17902531,67062.0,67054.0,0.00148]
[1772992037704,0.0747781,67062.0,67054.0,0.00148]
[1772992037905,0.0747781,67062.0,67055.0,0.07456565]
[1772992039658,0.07477789,67062.0,67055.0,0.07456565]
[1772992039910,0.00034091,67064.0,67055.0,0.07456565]
[1772992040136,0.00034091,67064.0,67058.0,0.00487198]
[1772992042484,0.00034091,67064.0,67059.0,0.0745612]
[1772992042794,0.00034091,67064.0,67061.0,0.00487198]
[1772992046213,0.00034091,67064.0,67060.0,0.08091202]
[1772992047461,0.00022001,67067.0,67061.0,0.00487198]
[1772992049502,0.00022001,67067.0,67063.0,0.00487198]
[1772992050682,0.07624471,67074.0,67063.0,0.00487198]
[1772992050683,0.07454298,67076.0,67063.0,0.00503858]
[1772992052086,0.09964406,67074.0,67061.0,0.00148]
[1772992052282,0.09964406,67074.0,67060.0,0.07455958]
[1772992052283,0.00460315,67073.0,67060.0,0.07455958]
[1772992052475,0.00460315,67071.0,67061.0,0.00148]
[1772992052671,0.00022001,67067.0,67061.0,0.00148]
[1772992054350,0.07455342,67066.0,67061.0,0.00148]
[1772992055583,0.07455342,67066.0,67059.0,0.07469902]
[1772992055814,0.07455342,67066.0,67057.0,0.07456261]
[1772992055815,0.07915657,67066.0,67056.0,0.07456427]
[1772992055986,0.00460315,67064.0,67057.0,0.00148]
[1772992056583,0.07455611,67064.0,67057.0,0.07604284]
[1772992056785,0.07455611,67064.0,67054.0,0.07476652]
[1772992056986,0.07455611,67064.0,67054.0,0.07476637]
[1772992056987,0.00460315,67063.0,67054.0,0.07476637]
[1772992057218,0.07455611,67064.0,67054.0,0.07476637]
[1772992057416,0.07455611,67064.0,67055.0,0.00148]
[1772992059757,0.07455564,67065.0,67056.0,0.07456454]
[1772992060818,0.07477343,67066.0,67056.0,0.07456454]
[1772992067248,0.07477343,67066.0,67057.0,0.00465271]
[1772992068794,0.07477343,67066.0,67057.0,0.07921541]
[1772992069238,0.07477343,67066.0,67056.0,0.0002]
[1772992069379,0.00495454,67064.0,67057.0,0.00148]
[1772992069967,0.07477343,67066.0,67057.0,0.00148]
[1772992072039,0.07477343,67066.0,67057.0,0.07604308]
[1772992081187,0.07477343,67066.0,67056.0,0.07476387]
[1772992085568,0.07975116,67066.0,67056.0,0.07476387]
[1772992086865,0.07975116,67066.0,67056.0,0.00168]
[1772992087743,0.07477343,67066.0,67056.0,0.00168]
[1772992087955,0.00497773,67065.0,67056.0,0.00168]
[1772992088865,0.07455564,67064.0,67057.0,0.07456343]
[1772992089577,0.0045504,67062.0,67050.0,0.00148]
[1772992089728,0.09499621,67061.0,67050.0,0.00148]
[1772992090555,0.07603564,67064.0,67050.0,0.00148]
[1772992090757,0.07455564,67065.0,67054.0,0.07456676]
[1772992090952,0.07455564,67065.0,67056.0,0.00623238]
[1772992092000,0.07455564,67065.0,67057.0,0.00148]
[1772992095392,0.07455564,67065.0,67057.0,0.0760434]
[1772992095589,0.00022001,67066.0,67059.0,0.0745612]
[1772992095780,0.00022001,67073.0,67062.0,0.00623238]
[1772992095781,0.07476578,67073.0,67062.0,0.00623238]
[1772992095990,0.07476578,67073.0,67065.0,0.00623238]
[1772992096428,0.22378721,67073.0,67065.0,0.00623238]
[1772992096604,0.07476578,67073.0,67065.0,0.00623238]
[1772992096804,0.00022001,67073.0,67065.0,0.00623238]
[1772992097090,0.00022001,67076.0,67062.0,0.00148]
[1772992097091,0.00022001,67076.0,67068.0,0.00623238]
[1772992097691,0.00022001,67076.0,67070.0,0.00623238]
[1772992098370,0.07476264,67076.0,67070.0,0.00623238]
[1772992098590,0.00022001,67073.0,67070.0,0.00623238]
[1772992099732,0.00022001,67073.0,67071.0,0.07454786]
[1772992099906,0.00022001,67076.0,67072.0,0.00623238]
[1772992100242,0.07476283,67076.0,67072.0,0.00623238]
[1772992103707,0.00022001,67076.0,67072.0,0.00623238]
[1772992103908,0.07476262,67076.0,67072.0,0.00623238]
[1772992104378,0.07697938,67079.0,67074.0,0.00623238]
[1772992104572,0.07697938,67079.0,67071.0,0.07454564]
[1772992104769,0.07697938,67079.0,67072.0,0.00623238]
[1772992105388,0.07697938,67079.0,67074.0,0.00623238]
[1772992106574,0.00244,67079.0,67074.0,0.0745437]
[1772992106755,0.00244,67079.0,67075.0,0.00623238]
[1772992107432,0.07697933,67079.0,67075.0,0.00623238]
[1772992107623,0.07697933,67079.0,67070.0,0.07454681]
[1772992107817,0.07697933,67079.0,67071.0,0.00623238]
[1772992108230,0.08497248,67080.0,67073.0,0.00623238]
[1772992108859,0.08497248,67080.0,67074.0,0.00623238]
[1772992110236,0.07475991,67088.0,67075.0,0.09575313]
[1772992110603,0.0745345,67085.0,67078.0,0.00623238]
[1772992111009,0.07475955,67088.0,67080.0,0.00623238]
[1772992111209,0.00023,67088.0,67080.0,0.00623238]
[1772992111556,0.00023,67088.0,67082.0,0.00623238]
[1772992112839,0.00023,67088.0,67083.0,0.07453453]
[1772992113011,0.00023,67088.0,67084.0,0.00623238]
[1772992113216,0.00022001,67086.0,67084.0,0.00623238]
[1772992113801,0.0747512,67086.0,67075.0,0.07454252]
[1772992114099,0.0747512,67086.0,67077.0,0.00623238]
[1772992118256,0.0747512,67086.0,67078.0,0.00623238]
[1772992121733,0.0747512,67086.0,67077.0,0.07454098]
[1772992124883,0.0747512,67086.0,67077.0,0.08077336]
[1772992127465,0.0747512,67086.0,67077.0,0.08097336]
[1772992131352,0.00022001,67090.0,67077.0,0.08097336]
[1772992131353,0.07452564,67091.0,67078.0,0.09040054]
[1772992131555,0.07452564,67091.0,67081.0,0.00623238]
[1772992131763,0.07452564,67091.0,67082.0,0.00771238]
[1772992131973,0.07452564,67091.0,67082.0,0.09188054]
[1772992132142,0.07452564,67091.0,67083.0,0.00623238]
[1772992132918,0.00022001,67093.0,67084.0,0.09040054]
[1772992133120,0.22677421,67100.0,67087.0,0.00623238]
[1772992133328,0.07451675,67099.0,67089.0,0.00623238]
[1772992136410,0.07473676,67099.0,67089.0,0.00623238]
[1772992138340,0.07473676,67099.0,67089.0,0.08076009]
[1772992138985,0.07473676,67099.0,67089.0,0.00623238]
[1772992139387,0.07473676,67099.0,67089.0,0.07926048]
[1772992140294,0.07473681,67099.0,67091.0,0.00473317]
[1772992140525,0.0001815,67101.0,67091.0,0.09040054]
[1772992140731,0.15458631,67106.0,67094.0,0.00473317]
[1772992141009,0.08028932,67106.0,67096.0,0.00473317]
[1772992141185,0.08043932,67106.0,67096.0,0.00473317]
[1772992141511,0.07565564,67110.0,67099.0,0.09040054]
[1772992141708,0.07565564,67110.0,67100.0,0.00473317]
[1772992141931,0.07565564,67110.0,67102.0,0.00473317]
[1772992142313,0.07565564,67110.0,67103.0,0.07451231]
[1772992142314,0.0011503,67110.0,67103.0,0.07451231]
[1772992142614,0.0011503,67110.0,67104.0,0.00473317]
[1772992143059,0.07464642,67118.0,67104.0,0.08913174]
[1772992143211,0.07464642,67118.0,67106.0,0.00473317]
[1772992143409,0.07464642,67118.0,67103.0,0.07451231]
[1772992143410,0.0001503,67118.0,67108.0,0.08913174]
[1772992143728,0.0001503,67118.0,67110.0,0.00473317]
[1772992144336,0.0001503,67118.0,67111.0,0.07450343]
[1772992144536,0.0001503,67118.0,67112.0,0.00473317]
[1772992145221,0.00022001,67117.0,67112.0,0.00473317]
[1772992145645,0.00022001,67117.0,67111.0,0.07450343]
[1772992145646,0.00022001,67117.0,67109.0,0.0745044]
[1772992145846,0.09112517,67117.0,67108.0,0.00148]
[1772992146061,0.09112517,67117.0,67107.0,0.00148]
[1772992146274,0.09165881,67117.0,67105.0,0.07450903]
[1772992146594,0.07449788,67116.0,67106.0,0.07598884]
[1772992146794,0.16540304,67116.0,67106.0,0.07450884]
[1772992147171,0.07449788,67116.0,67106.0,0.07450884]
[1772992150497,0.07449788,67116.0,67106.0,0.07924201]
[1772992151092,0.07471789,67117.0,67106.0,0.07450884]
[1772992151308,0.00022001,67117.0,67106.0,0.07450884]
[1772992151597,0.07471709,67117.0,67106.0,0.17924201]
[1772992152820,0.00022001,67116.0,67106.0,0.17924201]
[1772992154217,0.00022001,67116.0,67107.0,0.00473317]
[1772992155103,0.07471795,67116.0,67108.0,0.07450676]
[1772992160324,0.00022001,67116.0,67108.0,0.07923993]
[1772992160694,0.07471856,67116.0,67108.0,0.07923993]
[1772992162245,0.07471856,67116.0,67108.0,0.07943993]
[1772992162613,0.07471856,67116.0,67108.0,0.07470676]
[1772992166280,0.07471856,67116.0,67108.0,0.0002]
[1772992169901,0.07471856,67116.0,67105.0,0.07450787]
[1772992170483,0.16562372,67116.0,67105.0,0.07598787]
[1772992170916,0.07471829,67116.0,67106.0,0.00473317]
[1772992171238,0.07471829,67116.0,67105.0,0.07598787]
[1772992171239,0.07471829,67116.0,67109.0,0.00473317]
[1772992171571,0.07471797,67116.0,67109.0,0.00473317]
[1772992172427,0.07471797,67116.0,67110.0,0.07450454]
[1772992172646,0.07471797,67116.0,67110.0,0.07923771]
[1772992174094,0.00022001,67116.0,67110.0,0.07923771]
[1772992174294,0.0001503,67118.0,67111.0,0.00454292]
[1772992175908,0.00015,67123.0,67114.0,0.00454292]
[1772992176967,0.00015,67123.0,67113.0,0.07450121]
[1772992176968,0.00015,67123.0,67115.0,0.00148]
[1772992177147,0.00015,67123.0,67115.0,0.00602292]
[1772992178121,0.00026898,67123.0,67116.0,0.07449788]
[1772992178397,0.07475913,67123.0,67116.0,0.07449788]
[1772992179449,0.07475913,67123.0,67116.0,0.07934134]
[1772992180983,0.07497914,67123.0,67116.0,0.07934134]
[1772992182986,0.00048899,67123.0,67117.0,0.00484346]
[1772992184562,0.07497969,67123.0,67115.0,0.00148]
[1772992184691,0.08983338,67121.0,67110.0,0.07470381]
[1772992184897,0.07449233,67121.0,67112.0,0.07450232]
[1772992185140,0.0744918,67122.0,67112.0,0.07450232]
[1772992186912,0.0744918,67122.0,67110.0,0.0002]
[1772992187110,0.08983338,67119.0,67110.0,0.0747042]
[1772992187354,0.09320576,67119.0,67110.0,0.0747042]
[1772992187767,0.00337238,67118.0,67110.0,0.0747042]
[1772992188010,0.0744918,67122.0,67107.0,0.0745071]
[1772992188011,0.08983338,67117.0,67107.0,0.0745071]
[1772992188174,0.00337238,67116.0,67108.0,0.07450634]
[1772992188384,0.00337238,67116.0,67103.0,0.0002]
[1772992188530,0.00337238,67114.0,67098.0,0.001696]
[1772992188745,0.00337238,67111.0,67098.0,0.07621275]
[1772992188956,0.00337238,67111.0,67098.0,0.07473309]
[1772992188957,0.00337238,67109.0,67098.0,0.07473309]
[1772992189368,0.00337238,67109.0,67098.0,0.07621309]
[1772992189794,0.00337238,67109.0,67103.0,0.0002]
[1772992190846,0.07450454,67110.0,67103.0,0.0002]
[1772992192058,0.07450132,67113.0,67103.0,0.0002]
[1772992192240,0.07598132,67113.0,67103.0,0.0002]
[1772992192440,0.07450132,67113.0,67103.0,0.0002]
[1772992192643,0.0745001,67114.0,67103.0,0.00504346]
[1772992194197,0.0745001,67114.0,67087.0,0.00148]
[1772992194198,0.00466666,67103.0,67087.0,0.00148]
[1772992194329,0.00466666,67103.0,67089.0,0.08915166]
[1772992194330,0.00466666,67102.0,67089.0,0.08915166]
[1772992195155,0.00466666,67102.0,67083.0,0.07453429]
[1772992195156,0.00466666,67099.0,67079.0,1e-08]
[1772992195368,0.00466666,67099.0,67062.0,0.22306981]
[1772992195369,0.00466666,67099.0,67065.0,0.09512267]
[1772992195370,0.06725059,67088.0,67065.0,0.09512267]
[1772992195638,0.000409,67099.0,67065.0,0.09512267]
[1772992195639,0.00466666,67079.0,67067.0,0.00011909]
[1772992195884,0.00466666,67079.0,67067.0,0.00159909]
[1772992196290,0.00466666,67069.0,67059.0,0.00148]
[1772992196527,0.00466666,67069.0,67060.0,0.00148]
[1772992197265,0.00466666,67069.0,67055.0,0.07940877]
[1772992197266,0.00466666,67067.0,67031.0,0.34831415]
[1772992197464,0.00466666,67058.0,67038.0,0.00148]
[1772992197707,0.00466666,67055.0,67038.0,0.00153917]
[1772992198320,0.00466666,67053.0,67038.0,0.07612354]
[1772992198465,0.00466666,67053.0,67038.0,5.917e-05]
[1772992198670,0.00466666,67052.0,67039.0,0.00148]
[1772992198917,0.07456676,67056.0,67041.0,0.00484346]
[1772992199140,0.07603676,67063.0,67043.0,0.00484346]
[1772992199346,0.0493336,67060.0,67044.0,0.09976613]
[1772992199563,0.00466666,67059.0,67045.0,0.00148]
[1772992199775,0.00466666,67058.0,67045.0,0.00148]
[1772992200174,0.00466666,67057.0,67045.0,0.00148]
[1772992200914,0.00466666,67055.0,67045.0,0.00148]
[1772992201519,0.00466666,67055.0,67046.0,0.00148]
[1772992201725,0.08983338,67052.0,67046.0,0.00148]
[1772992201931,0.07456329,67059.0,67038.0,0.07464324]
[1772992201932,0.07454786,67071.0,67047.0,0.00148]
[1772992202237,0.07454786,67071.0,67040.0,0.00023]
[1772992202238,0.07454786,67071.0,67052.0,0.09492267]
[1772992202378,0.07454786,67071.0,67055.0,0.00484346]
[1772992202684,0.07454786,67071.0,67059.0,0.00484346]
[1772992202893,0.07454786,67071.0,67063.0,0.00484346]
[1772992203094,0.07454231,67076.0,67066.0,0.09219558]
[1772992203352,0.07454231,67076.0,67066.0,0.09703904]
[1772992203524,0.07454231,67076.0,67064.0,0.00148]
[1772992203525,0.07454231,67076.0,67067.0,0.00484346]
[1772992203694,0.07454231,67076.0,67067.0,0.09703904]
[1772992203915,0.07466127,67076.0,67067.0,0.09703904]
[1772992204965,0.07466127,67076.0,67064.0,0.00148]
[1772992205535,0.00011896,67076.0,67065.0,0.00478399]
[1772992205750,0.00011896,67076.0,67067.0,0.00478399]
[1772992205867,0.08010231,67079.0,67069.0,0.00478399]
[1772992206072,0.08010231,67079.0,67072.0,0.09393045]
[1772992206278,0.08010231,67079.0,67073.0,0.00478399]
[1772992206723,0.08010231,67079.0,67070.0,0.00148]
[1772992207706,0.09177004,67077.0,67055.0,0.07456553]
[1772992207930,0.09177004,67077.0,67059.0,0.07476021]
[1772992207931,0.00450851,67076.0,67059.0,0.07476021]
[1772992208294,0.08010231,67079.0,67063.0,0.09393045]
[1772992208455,0.08010231,67079.0,67066.0,0.00478399]
[1772992208652,0.08010231,67079.0,67068.0,0.00482665]
[1772992208833,0.08010231,67079.0,67067.0,0.09541045]
[1772992209048,0.08485563,67079.0,67068.0,0.0745512]
[1772992210337,0.00475332,67078.0,67067.0,0.00148]
[1772992210537,0.09177004,67075.0,67065.0,0.00148]
[1772992210837,0.00475332,67074.0,67063.0,0.00011902]
[1772992211042,0.00475332,67074.0,67065.0,0.00148]
[1772992211237,0.07454564,67073.0,67063.0,0.00011902]
[1772992211448,0.00475332,67072.0,67063.0,0.00011902]
[1772992211654,0.00475332,67072.0,67065.0,0.001]
[1772992212086,0.00475332,67072.0,67063.0,0.00011902]
[1772992213389,0.00475332,67070.0,67063.0,0.00011902]
[1772992215616,0.07455009,67069.0,67063.0,0.00011902]
[1772992215820,0.07930341,67069.0,67063.0,0.00011902]
[1772992223778,0.07455009,67069.0,67063.0,0.00011902]
[1772992223993,0.07454786,67071.0,67063.0,0.00011902]
[1772992224616,0.07454675,67072.0,67063.0,0.00011902]
[1772992228020,0.07454675,67072.0,67063.0,0.00031902]
[1772992228215,0.07476676,67072.0,67063.0,0.00031902]
[1772992231296,0.07476676,67072.0,67063.0,0.07487575]
[1772992234866,0.1932715,67083.0,67063.0,0.07487575]
[1772992234867,0.07454141,67077.0,67064.0,0.09375252]
[1772992235082,0.07454141,67077.0,67065.0,0.07455453]
[1772992235738,0.07454141,67077.0,67065.0,0.16830705]
[1772992236238,0.09154339,67077.0,67065.0,0.16830705]
[1772992240098,0.07454141,67077.0,67066.0,0.09375252]
[1772992240321,0.07454141,67077.0,67067.0,0.00148]
[1772992241324,0.01700198,67076.0,67067.0,0.00148]
[1772992241931,0.07476142,67077.0,67067.0,0.00148]
[1772992242108,0.07476142,67077.0,67067.0,0.07603219]
[1772992242308,0.0917634,67077.0,67067.0,0.00148]
[1772992242524,0.0917634,67077.0,67067.0,0.076032]
[1772992245446,0.07476142,67077.0,67067.0,0.076032]
[1772992245645,0.01700198,67076.0,67067.0,0.076032]
[1772992247046,0.07454342,67075.0,67067.0,0.076032]
[1772992249209,0.07476343,67075.0,67067.0,0.076032]
[1772992252926,0.01700198,67073.0,67065.0,0.00148]
[1772992253095,0.01700198,67073.0,67062.0,0.00148]
[1772992253096,0.01700198,67072.0,67062.0,0.00148]
[1772992253294,0.01712098,67072.0,67062.0,0.00148]
[1772992253531,0.07454786,67071.0,67059.0,0.0002]
[1772992253733,0.07454786,67071.0,67060.0,0.00148]
[1772992253734,0.01700198,67070.0,67060.0,0.00148]
[1772992254454,0.07454786,67071.0,67061.0,0.09375252]
[1772992255747,0.07454786,67071.0,67062.0,0.07455787]
[1772992264025,0.07454786,67071.0,67062.0,0.07475787]
[1772992265541,0.01700198,67073.0,67062.0,0.07455787]
[1772992265725,0.01700198,67073.0,67062.0,0.07467687]
[1772992270453,0.07454675,67072.0,67062.0,0.07467687]
[1772992271139,0.07454675,67072.0,67063.0,0.09773345]
[1772992272027,0.07454675,67074.0,67063.0,0.09773345]
[1772992272243,0.00148,67078.0,67063.0,0.09773345]
[1772992272244,0.08325213,67087.0,67063.0,0.09773345]
[1772992272457,0.07504847,67082.0,67063.0,0.09773345]
[1772992272669,0.07504847,67082.0,67065.0,0.09773345]
[1772992272874,0.07504847,67082.0,67064.0,0.07455564]
[1772992272875,0.07504847,67082.0,67067.0,0.09773345]
[1772992274573,0.00850099,67081.0,67067.0,0.09773345]
[1772992275484,0.07453786,67080.0,67068.0,0.0745512]
[1772992276542,0.00850099,67079.0,67068.0,0.0745512]
[1772992276746,0.00850099,67079.0,67069.0,0.00148]
[1772992277199,0.00850099,67079.0,67066.0,0.0745512]
[1772992277370,0.00850099,67078.0,67070.0,0.00148]
[1772992277689,0.00850099,67076.0,67070.0,0.00148]
[1772992279254,0.008721,67076.0,67070.0,0.00148]
[1772992280264,0.008721,67076.0,67070.0,0.17376224]
[1772992280265,0.00022001,67076.0,67070.0,0.17376224]
[1772992281461,1e-08,67076.0,67070.0,0.17376224]
[1772992281615,1e-08,67076.0,67071.0,0.09773345]
[1772992284170,1e-08,67076.0,67072.0,0.07454675]
[1772992284744,1e-08,67076.0,67073.0,0.09773345]
[1772992285051,0.00022001,67084.0,67073.0,0.09773345]
[1772992286323,0.00022001,67083.0,67074.0,0.07454453]
[1772992286578,0.00022001,67083.0,67075.0,0.00148]
[1772992289022,0.00022001,67083.0,67076.0,0.07454231]
[1772992289231,0.00022001,67083.0,67075.0,0.07602231]
[1772992289232,0.07475479,67083.0,67075.0,0.07602231]
[1772992289440,0.01269905,67082.0,67075.0,0.07602231]
[1772992293021,0.01291906,67082.0,67075.0,0.07602231]
[1772992294640,0.00022001,67082.0,67075.0,0.07602231]
[1772992302086,0.0061314,67081.0,67075.0,0.07602231]
[1772992306854,0.0061314,67081.0,67075.0,0.07622231]
[1772992308944,0.0061314,67081.0,67077.0,0.07454119]
[1772992309349,0.0061314,67081.0,67077.0,0.07602119]
[1772992310169,0.0061314,67081.0,67077.0,0.00148]
[1772992310577,0.0061314,67081.0,67075.0,0.0002]
[1772992310794,0.0061314,67081.0,67077.0,0.00148]
[1772992311580,0.0061314,67081.0,67075.0,0.0002]
[1772992311788,0.0061314,67080.0,67077.0,0.00148]
[1772992312179,0.0061314,67080.0,67076.0,0.07454212]
[1772992312391,0.0061314,67080.0,67077.0,0.00148]
[1772992312591,0.0061314,67080.0,67076.0,0.07454212]
[1772992312792,0.0061314,67080.0,67077.0,0.00148]
[1772992313186,0.0061314,67080.0,67076.0,0.07454212]
[1772992313388,0.0061314,67080.0,67077.0,0.00148]
[1772992313826,0.0061314,67080.0,67058.0,0.07519155]
[1772992313827,0.19767047,67079.0,67058.0,0.07519155]
[1772992313996,0.19767047,67079.0,67038.0,0.29807257]
[1772992313997,0.0061314,67065.0,67042.0,0.00148]
[1772992314216,0.0061314,67058.0,67042.0,0.07605921]
[1772992314413,0.0061314,67058.0,67042.0,0.07457921]
[1772992314631,0.0061314,67058.0,67043.0,0.00148]
[1772992314988,0.11906642,67054.0,67043.0,0.00148]
[1772992315195,0.0647207,67057.0,67045.0,0.00386859]
[1772992315468,0.00488351,67063.0,67046.0,0.04154325]
[1772992315616,0.00488351,67063.0,67061.0,0.0002]
[1772992315808,0.00488351,67063.0,67052.0,0.00148]
[1772992316260,0.07944138,67062.0,67052.0,0.0760484]
[1772992318043,0.00496785,67061.0,67052.0,0.0760484]
[1772992318249,0.07456009,67060.0,67052.0,0.0760484]
[1772992320055,0.00496785,67063.0,67052.0,0.0760484]
[1772992321079,0.0007529,67062.0,67052.0,0.0760484]
[1772992321276,0.00496785,67061.0,67052.0,0.0760484]
[1772992321478,0.0007529,67062.0,67053.0,0.0968353]
[1772992321796,0.07952071,67067.0,67053.0,0.09689959]
[1772992322293,0.07952071,67067.0,67055.0,0.0968353]
[1772992322493,0.07952032,67067.0,67055.0,0.0968353]
[1772992323263,0.00496785,67067.0,67055.0,0.0968353]
[1772992323800,0.07951714,67070.0,67055.0,0.0968353]
[1772992323977,0.00496785,67069.0,67055.0,0.0968353]
[1772992324181,0.0795184,67069.0,67056.0,0.07456454]
[1772992324396,0.0795184,67069.0,67057.0,0.10789571]
[1772992324559,0.00011902,67070.0,67058.0,0.00148]
[1772992324759,0.00015,67072.0,67061.0,0.10789571]
[1772992324960,0.00025059,67072.0,67063.0,0.10789571]
[1772992325156,0.00025059,67072.0,67064.0,0.00148]
[1772992326214,0.07479748,67072.0,67065.0,0.07455453]
[1772992326414,0.00463105,67071.0,67064.0,0.07603476]
[1772992329597,0.00485106,67071.0,67064.0,0.07603476]
[1772992329798,0.0793991,67071.0,67064.0,0.07603476]
[1772992331157,0.00485106,67071.0,67064.0,0.07603476]
[1772992331356,0.00022001,67071.0,67064.0,0.07603476]
[1772992333376,0.1482236,67071.0,67064.0,0.07603476]
[1772992334573,0.14800359,67070.0,67064.0,0.07603476]
[1772992334771,0.14800359,67069.0,67064.0,0.07603476]
[1772992335064,0.14800359,67070.0,67064.0,0.07603476]
[1772992335383,0.00018001,67071.0,67064.0,0.07603476]
[1772992337630,0.00022001,67070.0,67064.0,0.07603476]
[1772992338971,0.00022001,67077.0,67065.0,0.10801571]
[1772992339171,0.0748148,67077.0,67066.0,0.07455342]
[1772992342214,0.0748148,67077.0,67066.0,0.18256913]
[1772992343928,0.00022001,67081.0,67066.0,0.07715289]
[1772992344133,0.0800994,67079.0,67067.0,0.10801571]
[1772992344778,0.00022001,67077.0,67067.0,0.10801571]
[1772992345416,0.00022001,67077.0,67068.0,0.0745512]
[1772992346586,0.00022001,67077.0,67069.0,0.00148]
[1772992347156,0.00022001,67077.0,67070.0,0.07454897]
[1772992353210,0.14859538,67077.0,67070.0,0.07454897]
[1772992355223,0.14837537,67076.0,67070.0,0.07454897]
[1772992355627,0.00022001,67081.0,67070.0,0.07454897]
[1772992355851,0.00022001,67081.0,67070.0,0.17773451]
[1772992356201,0.07475685,67081.0,67070.0,0.17773451]